Workbook

Sheet Pro Forma
A1: 2020: 1360 Berkeley Way. Berkeley CA 94702 | D1: v06 | E1: Realtor | F1: Marc Guay
A2: Pro Forma Tab | F2: 510-206-3434
A3: Rental Units | B3: =Units!B24 -> 19 | E3: Broker >> | F3: David Fast
A4: Building Square Feet | B4: =Units!D24 -> 11021 | F4: 650-814-0140
A6: Revenue | B6: Factor | C6: Current | D6: Description | G6: Notes
A7: Gross Units Rents | B7: 12 | C7: =Units!E24*B7 -> 538104 | D7: Factor = Number of Months of Rent in Current
A8: Parking / Garage | C8: 0
A9: Laundry | C9: 0
A10: Storage / Pet Fees | C10: 0
A11: RUBS Utility Expenses | C11: 0 | D11: Ratio Utility Billing System - Tenant Utility Allocation
A12: Vacancy | B12: 0.05 | C12: =-SUM((C7:C11)*B12) -> -26905.2 | D12: Minimum Allowance of 5%
A13: Total Rental Income | C13: =SUM(C7:C12) -> 511198.8
A15: Operating Expenses | B15: Factor | C15: Current | D15: Description | G15: Notes
A16: Property Taxes - Assessment | B16: 0.0112 | C16: =SUM($B$16*$B$39) -> 61028.8 | D16: Purchase Price Range * Tax Rate
A17: Property Taxes - Levy | B17: 1000 | C17: =SUM($B$17*$B$3) -> 19000 | D17: Tax Levy Estimate
A18: Property Insurance | B18: 0.0145 | C18: =SUM($B$4*$B$18*100) -> 15980.45 | D18: Building SqFt * Insurance Rate per Feet
A19: Water | B19: 0 | C19: 11867 | D19: Water Service per year
A20: Sewer | B20: 0 | C20: 0 | D20: Sewer Service per year
A21: Garbage | B21: 0 | C21: 3545 | D21: Trash & Utilities Combined
A22: Gas & Electricity | B22: 0 | C22: 17650 | D22: Electricty per year
A23: Combined Utilities | B23: 0 | C23: 0 | D23: Electricty, water, sewer per year
A24: Janitorial / Cleaning | B24: 0 | C24: 0 | D24: Janitorial Services per year
A25: Pest Control | B25: 0 | C25: 0 | D25: Pest Control per month per year
A26: Marketing | B26: 0 | C26: 0 | D26: Marketing per year
A27: Landscaping | B27: 0 | C27: =SUM($B$27*12) -> 0 | D27: Landscaping per year
A28: Management Fee - On-Site | B28: =IF($B$3<16,0,5%) -> 0.05 | C28: =SUM($C$13*$B$28) -> 25559.94 | D28: % of Income per year for On-Site Management | G28: Lender Minimum < 16 Units
A29: Management Fee - Off-Site | B29: =IF($B$3>=16,4%,0) -> 0.04 | C29: =SUM($C$13*$B$29) -> 20447.952 | D29: % of Income per year for Off-Site Management | G29: Lender Minimum >= 16 Units
A30: Repairs & Maintenance | B30: 750 | C30: =SUM($B$30*$B$3) -> 14250 | D30: Repair & Maintenance per unit per year
A31: Replacement Reserves | B31: 250 | C31: =SUM($B$31*$B$3) -> 4750 | D31: Replacement Reserves per unit per year
A32: Business License | B32: 0 | C32: 0 | D32: Business License
A33: Special Assessment | B33: 0 | C33: 0 | D33: Construction, Plumbing
A34: Contract Services | B34: 0 | C34: 0 | D34: Contract Services
A35: City Taxes | B35: 0 | C35: 0 | D35: City Taxes
A36: Total Operating Expenses | C36: =SUM(C16:C35) -> 194079.142
A38: Financing | B38: Factor | D38: Description | G38: Notes
A39: Purchase Price / Value | B39: 5449000
A40: LTV | B40: 0.67 | D40: Est LTV
A41: Down Payment Amount | C41: =SUM($B$39-$C$42) -> 1798170
A42: Initial Loan Amount | C42: =SUM($B$39*$B$40) -> 3650830
A43: Interest Rate - Estimate | B43: 0.05855 | D43: Est Interest Rate
A44: Lender Points | B44: 0 | C44: =$C$42*$B$44 -> 0 | D44: Est Lender Points
A45: Lender Fees | C45: 5000 | D45: Est Lender Fees - Appraisal, Environ, etc
A46: Broker Points | B46: 0.015 | C46: =$C$42*$B$46 -> 54762.45
A47: Title & Escrow Costs | B47: 0.004 | C47: =$C$42*$B$47 -> 14603.32 | D47: Est Closing Costs
A48: Misc Closing Costs | C48: 0
A50: Actual Loan Amount | C50: =SUM($C$42:$C$48) -> 3725195.77
A51: Gross Operating Income | C51: =SUM($C$7+$C$9) -> 538104
A52: Gross Income Multiplier | C52: =SUM($B$39/$C51/100) -> 0.1012629529
A53: Net Operating Income | C53: =SUM($C$13-$C$36) -> 317119.658
A54: Monthly Debt Service | C54: =-PMT($B$43/12,360,$C$50,0) -> 21988.34601
A55: DSCR | C55: =SUM($C$53/($C$54*12)) -> 1.201847476
A56: CAP RATE | C56: =($C$53/$B$39) -> 0.0581977717
A58: Notice: The number and values above may not have been confirmed by an appraisal or lenders underwriter. They are estimates.
A61: Private Lending Services, Inc. ~ Multi-Family Property Financing Specialists
A62: David Fast ~ 650-814-0140 ~ david@privatelendingservices.com
A63: Discovery Bay CA 94505 ~ CABRE #01375185 ~ www.privatelendingservices.com

Sheet Units
A1: 1360 Berkeley Way, Berkeley CA 94702 | E1: V06
A4: Unit ID | B4: Unit | C4: Name | D4: SqFt | E4: Current | F4: Lease Start | G4: Lease End | H4: ProForma
A5: 1 | B5: x | C5: x | D5: x | E5: 2641 | H5: 0
A6: 2 | B6: x | C6: x | D6: x | E6: 2364 | H6: 0
A7: 3 | B7: x | C7: x | D7: x | E7: 2364 | H7: 0
A8: 4 | B8: x | C8: x | D8: x | E8: 1994 | H8: 0
A9: 5 | B9: x | C9: x | D9: x | E9: 2364 | H9: 0
A10: 6 | B10: x | C10: x | D10: x | E10: 2641 | H10: 0
A11: 7 | B11: x | C11: x | D11: x | E11: 2550 | H11: 0
A12: 8 | B12: x | C12: x | D12: x | E12: 2364 | H12: 0
A13: 9 | B13: x | C13: x | D13: x | E13: 2200 | H13: 0
A14: 10 | B14: x | C14: x | D14: x | E14: 2400 | H14: 0
A15: 11 | B15: x | C15: x | D15: x | E15: 1000 | H15: 0
A16: 12 | B16: x | C16: x | D16: x | E16: 2364 | H16: 0
A17: 14 | B17: x | C17: x | D17: x | E17: 2541 | H17: 0
A18: 15 | B18: x | C18: x | D18: x | E18: 2641 | H18: 0
A19: 16 | B19: x | C19: x | D19: x | E19: 1800 | H19: 0
A20: 17 | B20: x | C20: x | D20: x | E20: 2364 | H20: 0
A21: 18 | B21: x | C21: x | D21: x | E21: 2200 | H21: 0
A22: 19 | B22: x | C22: x | D22: x | E22: 2650 | H22: 0
A23: 20 | B23: x | C23: x | D23: x | E23: 3400 | H23: 0
B24: =SUM(COUNTA(B5:B23)) -> 19 | D24: 11021 | E24: =SUM(E5:E23) -> 44842 | H24: =SUM(H5:H14) -> 0
